bitfinex/quotes_ETHUSD_20230118
["timestamp","ask_amount","ask_price","bid_price","bid_amount"]
[1674062176605,1.026,1557.7,1557.3,64.0846783]
[1674062176770,14.06495014,1557.8,1557.3,64.0846783]
[1674062176771,0.06495014,1557.8,1557.3,64.0846783]
[1674062176977,14.0,1557.8,1557.3,0.066]
[1674062177236,0.06495014,1557.8,1557.3,64.0186783]
[1674062177453,14.0,1558.1,1557.3,64.0186783]
[1674062177454,0.066,1558.1,1557.4,0.51453497]
[1674062177670,0.066,1558.1,1557.4,1.0]
[1674062177671,1.0,1558.1,1557.4,1.0]
[1674062177832,7.45436792,1558.4,1557.5,6.42045]
[1674062177833,1.16348792,1558.4,1557.5,6.42045]
[1674062178030,14.066,1558.5,1557.6,0.642045]
[1674062178247,14.066,1558.5,1557.4,1.06]
[1674062178248,14.0,1558.3,1557.4,1.06]
[1674062178455,1.0,1558.2,1557.5,3.51453497]
[1674062178767,0.066,1558.3,1557.4,0.066]
[1674062178768,22.0,1557.6,1557.4,0.066]
[1674062178979,22.066,1557.6,1556.7,64.0846783]
[1674062179252,14.0,1557.2,1556.7,64.0846783]
[1674062179555,20.4878,1557.2,1556.8,0.04682295]
[1674062179770,22.0,1556.9,1556.8,0.04682295]
[1674062180000,3.066,1556.9,1556.8,0.04682295]
[1674062180155,0.503,1556.9,1556.8,0.04682295]
[1674062180518,14.0,1556.9,1556.8,0.04682295]
[1674062180676,18.066,1556.9,1556.8,0.04682295]
[1674062181080,0.002,1556.9,1556.8,0.04682295]
[1674062181289,7.35944715,1557.4,1556.8,0.04682295]
[1674062181290,14.0,1557.2,1556.8,0.04682295]
[1674062181555,0.066,1557.2,1556.9,1.0]
[1674062181872,0.066,1557.2,1556.8,1.04682295]
[1674062181873,14.0,1557.0,1556.8,0.04682295]
[1674062182025,22.066,1557.0,1556.8,0.04682295]
[1674062182235,0.066,1557.0,1556.8,0.04682295]
[1674062182497,21.42302,1556.9,1556.7,61.81802928]
[1674062182712,12.549,1556.8,1556.7,0.066]
[1674062182896,12.549,1556.8,1555.8,2.65033693]
[1674062182897,6.42417,1556.7,1555.8,2.65033693]
[1674062183109,22.0,1556.2,1556.1,64.86815033]
[1674062183408,22.89195161,1556.2,1556.1,64.93415033]
[1674062183630,0.95649802,1556.1,1555.4,2.53161603]
[1674062183873,14.0,1555.7,1555.4,0.98686562]
[1674062184194,0.066,1555.7,1555.4,1.08658884]
[1674062184411,0.012,1555.7,1555.5,0.51644056]
[1674062184599,38.333,1556.1,1555.7,0.00688793]
[1674062184600,3.0,1556.0,1555.7,0.00688793]
[1674062184763,4.79264248,1556.1,1555.8,6.42756]
[1674062184974,1.0,1556.6,1555.8,6.42756]
[1674062184975,0.06,1556.6,1555.8,0.066]
[1674062185220,1.0,1556.9,1555.7,6.42757]
[1674062185221,0.06,1556.9,1555.9,22.28142]
[1674062185453,0.63674173,1557.2,1555.9,0.126]
[1674062185602,14.0,1557.1,1556.0,6.4265]
[1674062185813,0.066,1557.1,1556.1,0.64265]
[1674062186080,43.49817,1557.4,1556.1,7.12858]
[1674062186237,43.49817,1557.4,1556.2,0.712858]
[1674062186238,14.0,1557.3,1556.2,0.712858]
[1674062186602,14.0,1556.5,1556.2,0.712858]
[1674062186828,14.062,1556.5,1556.1,0.032]
[1674062187130,0.066,1556.5,1556.0,1.0]
[1674062187342,14.0,1556.2,1556.0,1.0]
[1674062187554,22.066,1556.2,1556.0,1.0]
[1674062187867,6.59274173,1556.1,1555.5,1.126]
[1674062188093,14.0,1555.7,1555.5,1.0]
[1674062188393,0.066,1555.7,1555.6,12.85676]
[1674062188579,1.0,1556.8,1556.1,0.02686101]
[1674062188914,22.0,1556.2,1556.1,0.02686101]
[1674062189127,34.8678,1556.2,1556.1,0.02686101]
[1674062189300,37.9178,1556.2,1556.1,0.02686101]
[1674062189729,38.55454173,1556.2,1556.1,0.02686101]
[1674062190080,3.066,1556.2,1556.1,0.52986101]
[1674062190290,3.066,1556.2,1556.1,0.02686101]
[1674062190291,3.0,1556.2,1556.1,0.02686101]
[1674062190504,3.0,1556.2,1556.1,0.52986101]
[1674062190697,14.066,1556.4,1556.1,0.00086101]
[1674062191052,0.066,1556.4,1556.1,0.00086101]
[1674062191270,14.0,1557.2,1556.1,0.30094711]
[1674062191271,14.0,1556.9,1556.1,0.30094711]
[1674062191418,1.0,1556.4,1556.2,12.8518]
[1674062191787,0.125,1556.4,1556.3,10.71067]
[1674062191958,14.0,1557.8,1556.3,0.002]
[1674062191959,0.63674173,1556.8,1556.3,0.002]
[1674062192171,2.05021361,1556.3,1555.7,0.03]
[1674062192421,0.06,1556.3,1555.9,1.0]
[1674062192633,5.1147771,1557.0,1556.1,12.85206]
[1674062192634,0.052,1556.9,1556.1,12.85206]
[1674062192822,0.075,1557.2,1556.1,12.91806]
[1674062193033,1.33041875,1556.7,1556.4,0.125]
[1674062193202,0.141,1557.1,1556.5,16.01634]
[1674062193415,2.92762722,1557.7,1556.8,9.627]
[1674062193745,2.92762722,1557.7,1557.0,6.42231]
[1674062193746,14.0,1557.4,1557.0,6.42231]
[1674062194130,0.066,1557.4,1557.0,0.066]
[1674062194259,0.06,1557.8,1556.6,0.06]
[1674062194260,10.0,1557.8,1556.6,0.06]
[1674062194468,14.0,1556.7,1556.4,0.06]
[1674062194748,22.0,1556.5,1556.2,1.0]
[1674062194956,14.0,1556.3,1556.2,1.0]
[1674062195135,0.002,1556.3,1556.2,1.0]
[1674062195469,14.066,1557.3,1556.4,1.002]
[1674062195689,14.0,1557.2,1556.4,1.002]
[1674062196025,0.066,1557.2,1556.4,6.42704]
[1674062196147,0.062,1557.2,1556.7,6.4238]
[1674062196357,14.066,1557.8,1556.9,9.627]
[1674062196618,14.066,1557.8,1557.0,6.42259]
[1674062196827,14.066,1557.8,1557.1,0.642259]
[1674062197149,14.0,1557.5,1557.1,0.89581195]
[1674062197307,0.066,1557.5,1557.1,0.89581195]
[1674062197652,0.066,1557.6,1557.2,0.23]
[1674062197826,5.439,1557.8,1557.1,0.23]
[1674062198042,0.066,1557.8,1557.0,1.0]
[1674062198247,0.066,1557.8,1556.8,0.06]
[1674062198248,14.0,1557.7,1556.8,0.06]
[1674062198463,5.373,1557.6,1556.7,1.0]
[1674062198721,5.439,1557.6,1556.6,0.85007862]
[1674062199042,5.439,1557.6,1556.7,0.09100786]
[1674062199043,0.5373,1557.5,1556.7,0.09100786]
[1674062199194,2.9103,1557.5,1556.7,0.09100786]
[1674062199404,3.0,1557.5,1556.7,0.95183648]
[1674062199613,0.06,1557.7,1556.7,0.95183648]
[1674062199614,0.126,1557.7,1556.8,14.5259252]
[1674062199824,5.439,1557.8,1556.9,4.40059252]
[1674062200082,0.066,1557.8,1557.0,7.4224]
[1674062200305,5.373,1557.8,1557.1,0.74224]
[1674062200617,3.0,1557.6,1557.1,1.92315214]
[1674062200769,3.0,1557.6,1557.0,1.0]
[1674062200770,0.066,1557.7,1557.2,2.15315214]
[1674062200979,2.373,1557.8,1557.3,1.21531521]
[1674062201244,0.066,1557.9,1557.4,0.23]
[1674062201405,8.0,1558.1,1557.4,0.33684674]
[1674062201610,0.066,1558.1,1557.4,0.33684674]
[1674062201985,5.373,1558.0,1557.4,0.33684674]
[1674062202149,5.373,1558.0,1557.4,2.25999888]
[1674062202150,5.439,1558.0,1557.4,2.25999888]
[1674062202368,0.066,1558.0,1557.5,0.22599989]
[1674062202598,3.0,1557.6,1557.3,1.066]
[1674062202922,0.066,1557.8,1557.3,1.0]
[1674062203111,5.373,1558.0,1557.3,1.0]
[1674062203112,0.066,1558.0,1557.4,0.1]
[1674062203342,0.17472081,1558.4,1557.4,0.1]
[1674062203537,0.17472081,1558.4,1557.3,8.39048761]
[1674062203538,2.373,1558.0,1557.3,2.03530761]
[1674062203745,5.373,1557.6,1557.1,0.066]
[1674062203958,5.373,1557.3,1556.7,1.126]
[1674062204129,0.066,1557.3,1556.7,1.0]
[1674062204338,5.373,1557.1,1556.8,0.1]
[1674062204595,0.066,1557.1,1556.7,1.0]
[1674062204815,11.5,1557.8,1556.7,1.0]
[1674062204816,5.373,1557.3,1556.7,1.0]
[1674062205126,0.06,1557.6,1556.8,7.00659413]
[1674062205284,0.23472081,1558.4,1557.1,1.0]
[1674062205501,8.0,1558.3,1557.1,7.48201]
[1674062205710,8.8,1558.2,1557.2,0.748201]
[1674062205920,0.066,1558.2,1557.3,4.49535283]
[1674062206171,0.17472081,1558.4,1557.3,1.06]
[1674062206387,0.17472081,1558.4,1557.3,7.48135]
[1674062206705,0.17472081,1558.4,1557.3,14.52559004]
[1674062206920,0.17472081,1558.4,1557.6,1.0]
[1674062207070,0.17472081,1558.4,1557.5,0.126]
[1674062207285,0.17472081,1558.4,1557.5,0.06]
[1674062207555,0.17472081,1558.4,1557.4,0.06]
[1674062207754,0.17472081,1558.4,1557.5,6.4205]
[1674062207913,0.17472081,1558.4,1557.6,1.0]
[1674062208606,0.17472081,1558.4,1557.4,3.626]
[1674062208780,0.17472081,1558.4,1557.3,0.126]
[1674062208999,0.17472081,1558.4,1557.3,0.06]
[1674062209206,0.17472081,1558.4,1557.3,3.856]
[1674062209419,14.0,1558.3,1557.3,0.356]
[1674062209599,0.066,1558.3,1557.4,3.5]
[1674062209806,0.23472081,1558.4,1557.4,0.06]
[1674062209807,0.17472081,1558.4,1557.4,0.06]
[1674062210080,0.17472081,1558.4,1557.4,9.9206]
[1674062210261,0.17472081,1558.4,1557.4,0.066]
[1674062210470,0.17472081,1558.4,1557.3,1.06]
[1674062210471,14.17472081,1558.4,1557.3,1.06]
[1674062210683,20.65765081,1558.4,1557.3,1.0]
[1674062211083,14.24072081,1558.4,1557.3,1.0]
[1674062211633,14.0,1557.9,1557.2,0.126]
[1674062211959,14.066,1557.9,1557.0,0.066]
[1674062212132,14.066,1557.9,1556.9,1.0]
[1674062212553,14.0,1557.5,1556.8,0.126]
[1674062212906,14.066,1557.5,1556.7,1.0]
[1674062213119,1.4066,1557.4,1556.7,1.0]
[1674062213280,14.066,1557.5,1556.7,1.0]
[1674062213732,14.0,1557.3,1556.5,1.126]
[1674062213944,0.066,1557.3,1556.5,1.0]
[1674062214164,14.0,1557.6,1556.6,0.1]
[1674062214486,0.066,1557.6,1556.9,6.42302]
[1674062214705,2.9228011,1558.0,1557.1,6.42186]
[1674062214870,2.9228011,1558.0,1557.2,1.642186]
[1674062214871,0.65001016,1558.0,1557.2,1.642186]
[1674062215058,14.066,1558.1,1557.2,1.642186]
[1674062215302,14.066,1558.1,1557.3,0.23]
[1674062215700,14.066,1558.1,1557.2,0.23]
[1674062215701,14.0,1557.9,1557.2,0.23]
[1674062215945,14.0,1557.9,1557.3,0.34464876]
[1674062215946,14.066,1557.9,1557.3,0.34464876]
[1674062216152,14.0,1557.8,1557.3,0.34464876]
[1674062216364,14.066,1557.8,1557.3,0.34464876]
[1674062216574,14.0,1557.6,1557.3,0.34464876]
[1674062216905,0.066,1557.6,1557.3,0.34464876]
[1674062217116,14.0,1557.7,1557.3,0.34464876]
[1674062217328,14.066,1557.7,1557.3,0.34464876]
[1674062218061,14.0,1557.5,1557.3,0.34464876]
[1674062218272,14.066,1557.5,1557.3,0.34464876]
[1674062218591,0.27761677,1557.2,1556.6,3.626]
[1674062218902,0.27761677,1557.2,1556.7,0.06202]
[1674062219533,0.27761677,1557.2,1556.8,6.42335]
[1674062219741,0.27761677,1557.2,1556.8,9.98663348]
[1674062219932,0.27761677,1557.2,1556.9,1.0]
[1674062220107,0.27761677,1557.2,1556.8,6.48936]
[1674062220319,0.27761677,1557.2,1556.8,0.066]
[1674062220529,0.27761677,1557.2,1556.7,1.0]
[1674062220733,0.27761677,1557.2,1556.5,0.126]
[1674062220950,0.27761677,1557.2,1556.4,1.0]
[1674062221675,0.27961677,1557.2,1556.4,1.0]
[1674062221903,0.27761677,1557.2,1556.4,1.0]
[1674062222082,0.27761677,1557.2,1556.5,3.49559055]
[1674062222259,0.27761677,1557.2,1556.7,12.8476]
[1674062222461,0.27761677,1557.2,1556.7,16.4136]
[1674062222672,0.27761677,1557.2,1556.8,5.14136]
[1674062222914,0.27761677,1557.2,1556.9,13.84586]
[1674062223145,0.27761677,1557.2,1556.9,13.14186]
[1674062223312,1.29315465,1557.9,1556.9,0.066]
[1674062223520,1.11527152,1557.9,1557.1,2.952]
[1674062223734,1.11527152,1557.9,1557.2,3.7952]
[1674062223966,0.65001016,1557.9,1557.4,19.26273]
[1674062224180,0.65001016,1557.9,1557.4,22.82873]
[1674062224386,0.65001016,1557.9,1557.5,2.282873]
[1674062224611,0.0237218,1558.3,1557.8,19.25691]
[1674062224783,0.0237218,1558.3,1557.8,19.32291]
[1674062225193,0.0237218,1558.3,1558.0,2.956]
[1674062225409,0.06,1558.9,1558.2,8.0]
[1674062225410,0.066,1558.9,1558.2,8.0]
[1674062225640,0.18630626,1559.2,1558.5,2.948]
[1674062225825,0.18630626,1559.2,1558.8,2.956]
[1674062226206,0.72784318,1559.8,1559.1,2.941]
[1674062226404,0.72784318,1559.8,1559.0,14.0]
[1674062226405,3.25100333,1559.9,1559.5,2.956]
[1674062226629,0.064,1560.0,1559.6,28.64724]
[1674062226927,3.945,1559.9,1559.6,0.01]
[1674062227098,16.84563099,1559.6,1559.4,0.066]
[1674062227306,16.927,1559.5,1559.0,1.0]
[1674062227559,9.33999,1559.4,1559.2,1.0]
[1674062227714,9.40599,1559.4,1559.3,1.0]
[1674062227922,9.40599,1559.4,1559.2,1.0]
[1674062227923,41.45545173,1559.4,1558.9,0.002]
[1674062228262,41.45545173,1559.4,1558.9,0.014]
[1674062228263,37.19908,1559.0,1558.9,0.014]
[1674062228603,0.066,1559.0,1558.9,0.517]
[1674062228821,0.19314958,1559.2,1558.9,0.503]
[1674062229220,0.19314958,1559.2,1558.4,0.06]
[1674062229433,21.05069173,1559.1,1558.4,0.03]
[1674062229757,14.0,1558.9,1558.0,4.81190717]
[1674062229968,14.066,1558.9,1558.0,1.30002032]
[1674062230128,0.066,1558.9,1558.0,1.30002032]
[1674062230343,0.70274173,1559.0,1558.0,1.30002032]
[1674062230549,0.31914958,1559.2,1558.0,14.59688474]
[1674062230795,0.63674173,1559.0,1558.0,15.72288474]
[1674062230986,0.25314958,1559.2,1558.4,19.25013]
[1674062231178,0.19314958,1559.2,1558.4,0.066]
[1674062231394,0.19314958,1559.2,1558.5,12.8325]
[1674062231644,0.19314958,1559.2,1558.5,6.48208]
[1674062232333,0.19314958,1559.2,1558.5,0.066]
[1674062232544,0.19314958,1559.2,1558.4,0.066]
[1674062232807,0.19314958,1559.2,1558.6,1.0]
[1674062233492,14.0,1559.0,1558.6,1.0]
[1674062233696,14.0,1559.0,1558.3,0.06]
[1674062233697,14.0,1558.7,1558.1,1.126]
[1674062233966,14.0,1558.7,1558.1,1.0]
[1674062233967,0.066,1558.7,1558.1,1.0]
[1674062234136,14.066,1558.8,1558.1,1.0]
[1674062234541,0.066,1558.8,1558.1,6.41803]
[1674062234764,0.06,1559.1,1558.1,0.066]
[1674062234765,14.0,1559.0,1558.1,0.066]
[1674062235011,14.0,1558.7,1557.9,1.0]
[1674062235184,15.33948346,1558.7,1557.9,1.0]
[1674062235398,0.066,1558.7,1557.7,2.36602032]
[1674062235592,22.8963,1558.8,1557.7,2.30002032]
[1674062235802,22.9623,1558.8,1557.7,1.30002032]
[1674062236012,1.0,1558.7,1557.8,1.0]
[1674062236255,14.0,1558.6,1557.8,10.91916]
[1674062236469,14.066,1558.6,1557.8,0.066]
[1674062236662,14.0,1558.3,1557.6,0.066]
[1674062236871,14.066,1558.3,1557.4,9.98655]
[1674062237084,14.066,1558.3,1557.4,6.48655]
[1674062237289,0.066,1558.3,1557.4,6.48655]
[1674062237499,14.0,1557.8,1557.4,0.066]
[1674062237710,1.0,1557.7,1556.9,6.4229]
[1674062237960,14.0,1557.7,1556.9,0.066]
[1674062238282,14.0,1557.5,1556.8,76.9315183]
[1674062238435,0.066,1557.5,1556.8,70.5080883]
[1674062238653,14.0,1557.9,1556.9,4.5]
[1674062238975,0.066,1557.9,1557.2,6.42178]
[1674062239191,14.0,1557.9,1557.2,0.066]
[1674062239378,14.0,1557.9,1557.1,0.064]
[1674062239379,14.0,1557.7,1557.1,0.064]
[1674062239587,14.0,1557.7,1556.9,16.41188]
[1674062239588,0.066,1557.7,1556.9,16.41188]
[1674062239834,0.69674173,1557.9,1556.9,14.553068]
[1674062239835,3.0,1557.9,1556.9,14.553068]
[1674062240065,3.0,1557.9,1557.2,6.42168]
[1674062240252,37.3357,1558.0,1557.2,0.066]
[1674062240461,23.3357,1558.0,1557.1,6.42217]
[1674062240693,0.066,1558.0,1557.1,17.402557]
[1674062240915,14.0,1558.0,1557.1,0.066]
[1674062241058,14.066,1558.0,1557.1,6.4218]
[1674062241269,1.0,1557.9,1557.1,6.4878]
[1674062241533,14.0,1557.7,1557.1,0.066]
[1674062241692,14.0,1557.6,1557.0,0.066]
[1674062242055,14.0,1557.6,1556.9,0.066]
[1674062242056,14.0,1557.5,1556.9,0.066]
[1674062242275,14.0,1557.5,1556.8,0.066]
[1674062242276,14.0,1557.3,1556.8,0.066]
[1674062242424,0.054,1557.3,1556.9,6.42296]
[1674062242775,14.066,1557.4,1556.9,0.066]
[1674062242993,0.066,1557.4,1556.8,6.42303]
[1674062243204,0.002,1557.4,1556.9,10.35666059]
[1674062243369,1.0,1557.9,1556.9,13.92266059]
[1674062243719,14.0,1557.4,1556.9,6.48861]
[1674062243896,0.066,1557.4,1556.9,0.066]
[1674062244106,3.06,1557.8,1556.9,0.066]
[1674062244107,3.0,1557.8,1556.9,6.42261]
[1674062244370,14.0,1557.4,1556.9,6.48861]
[1674062244562,14.066,1557.4,1556.9,0.066]
[1674062244791,0.066,1557.4,1556.8,0.066]
[1674062245108,22.2944,1557.6,1556.6,9.98995]
[1674062245318,17.29174759,1557.2,1556.6,0.066]
[1674062245487,17.29174759,1557.0,1556.5,0.04554822]
[1674062245699,3.29174759,1556.9,1556.5,0.04554822]
[1674062245933,17.29174759,1556.8,1556.5,0.04554822]
[1674062246148,3.29174759,1556.7,1556.5,0.04554822]
[1674062246402,0.066,1556.8,1556.5,0.04554822]
[1674062246522,0.066,1556.9,1556.5,0.04554822]
[1674062246736,17.066,1557.1,1556.5,0.04554822]
[1674062246950,14.0,1556.6,1556.5,0.04554822]
[1674062247193,3.066,1556.6,1556.1,1.04596327]
[1674062247400,0.066,1556.7,1556.1,0.04596327]
[1674062247731,1.0,1556.5,1556.1,0.04596327]
[1674062247945,14.066,1556.7,1556.1,0.04596327]
[1674062248098,0.066,1556.7,1556.0,6.49649147]
[1674062248308,0.066,1556.7,1556.0,0.06978147]
[1674062248309,14.0,1556.7,1556.0,0.06978147]
[1674062248514,14.066,1556.7,1556.0,0.00378147]
[1674062249201,3.29174759,1556.6,1556.0,0.00378147]
[1674062249415,3.29174759,1556.5,1556.0,0.00378147]
[1674062249571,14.0,1556.1,1556.0,0.00378147]
[1674062249781,0.066,1556.1,1556.0,0.00378147]
[1674062249991,0.066,1556.3,1556.0,0.00378147]
[1674062250232,14.0,1556.1,1556.0,0.00378147]
[1674062250446,0.066,1556.1,1556.0,0.00378147]
[1674062250658,0.066,1556.4,1556.0,0.00378147]
[1674062250833,3.0,1556.6,1556.0,0.00378147]
[1674062251038,14.0,1556.4,1556.0,0.00378147]
[1674062251254,14.066,1556.4,1556.0,0.00378147]
[1674062251472,3.29174759,1556.3,1556.0,0.00378147]
[1674062251686,14.0,1556.1,1556.0,0.00378147]
[1674062252019,1.0,1556.0,1555.7,0.04880144]
[1674062252254,22.0,1555.8,1555.7,0.04880144]
[1674062252465,25.35774759,1555.8,1555.7,0.04880144]
[1674062252634,0.066,1555.8,1555.7,0.04880144]
[1674062252999,1.066,1556.1,1555.7,0.04880144]
[1674062253171,37.475,1556.2,1555.7,6.47677144]
[1674062253384,23.475,1556.2,1555.7,6.54277144]
[1674062253802,3.29174759,1556.1,1555.7,6.54277144]
[1674062254328,0.63674173,1556.1,1555.7,0.11480144]
[1674062254536,14.0,1555.9,1555.7,0.04880144]
[1674062254748,14.066,1555.9,1555.7,0.04880144]
[1674062254997,8.0,1555.8,1555.7,0.04880144]
[1674062255148,8.066,1555.8,1555.7,0.00080144]
[1674062255362,8.066,1555.8,1555.2,0.05432539]
[1674062255363,11.93274173,1555.8,1555.2,0.05432539]
[1674062255574,3.29174759,1555.4,1555.2,0.05432539]
[1674062255904,14.0,1555.3,1555.2,0.05432539]
[1674062256143,17.35774759,1555.3,1555.2,0.05432539]
[1674062256627,28.35774759,1555.3,1555.2,0.05432539]
[1674062256842,1.0,1555.2,1554.7,0.03152186]
[1674062257112,9.0,1555.2,1554.7,0.03152186]
[1674062257295,1.066,1555.2,1554.7,0.03152186]
[1674062257508,14.0,1554.8,1554.7,0.03152186]
[1674062257838,0.066,1554.8,1554.7,0.03152186]
[1674062258007,11.35174759,1554.8,1554.7,0.03152186]
[1674062258216,0.066,1554.8,1554.7,0.03152186]
[1674062258467,14.0,1554.9,1554.7,0.03152186]
[1674062258468,0.066,1554.9,1554.7,0.53452186]
[1674062258790,0.066,1555.4,1554.9,0.06495465]
[1674062259096,0.06,1556.0,1555.0,19.29198]
[1674062259308,0.066,1556.2,1555.3,6.42933]
[1674062259309,23.8547,1556.2,1555.3,6.42933]
[1674062259525,14.0,1555.7,1555.3,0.066]
[1674062259832,0.066,1555.7,1555.3,0.0095745]
[1674062260044,14.0,1555.7,1555.3,0.0095745]
[1674062260255,14.066,1555.7,1555.3,0.0095745]
[1674062260567,1.0,1555.6,1555.3,0.0095745]
[1674062261053,22.0,1555.4,1555.3,0.0095745]
[1674062261270,25.066,1555.4,1555.3,0.0095745]
[1674062261464,25.066,1555.4,1555.3,0.0005745]
[1674062261677,3.066,1555.4,1555.3,0.5035745]
[1674062261888,0.066,1555.5,1555.3,0.5035745]
[1674062262091,0.066,1556.0,1555.3,0.0005745]
[1674062262308,14.0,1555.4,1555.3,0.0005745]
[1674062262640,17.35774759,1555.4,1555.3,0.0005745]
[1674062262995,3.35774759,1555.4,1555.3,0.0005745]
[1674062263148,17.29174759,1555.4,1555.3,0.0005745]
[1674062263352,0.066,1555.4,1555.3,0.0005745]
[1674062263702,0.066,1555.7,1555.3,0.5035745]
[1674062263930,14.0,1556.0,1555.3,0.0005745]
[1674062263931,3.29174759,1555.6,1555.3,0.0005745]
[1674062264111,0.066,1555.8,1555.3,0.0005745]
[1674062264298,0.06,1555.9,1555.3,0.0005745]
[1674062264299,14.0,1555.9,1555.4,12.85842]
[1674062264505,14.0,1555.7,1555.4,0.066]
[1674062264781,0.066,1555.7,1555.3,0.0005745]
[1674062264931,4.42401605,1556.0,1555.3,0.0005745]
[1674062265135,1.0,1556.0,1555.3,0.0005745]
[1674062265394,14.0,1555.9,1555.3,0.0005745]
[1674062265605,14.0,1555.6,1555.3,0.0005745]
[1674062265823,14.0,1555.4,1555.3,0.0005745]
[1674062266086,25.066,1555.4,1555.3,0.0005745]
[1674062266344,0.066,1555.4,1555.3,0.0005745]
[1674062266568,14.01,1555.4,1555.3,0.0005745]
[1674062266858,14.066,1555.4,1555.3,0.0005745]
[1674062267138,0.066,1555.4,1555.3,0.0005745]
[1674062267369,1.0,1555.6,1555.3,0.0005745]
[1674062267579,4.29174759,1555.6,1555.3,0.0005745]
[1674062267811,0.066,1555.7,1555.3,0.0005745]
[1674062268131,0.126,1556.0,1555.3,13.1867845]
[1674062268291,37.1481,1556.2,1555.3,18.71444295]
[1674062268292,1.0,1556.1,1555.3,18.71444295]
[1674062268760,14.0,1555.6,1555.3,6.4957845]
[1674062268939,0.066,1555.6,1555.3,0.0665745]
[1674062269153,15.066,1556.1,1555.3,0.5035745]
[1674062269412,15.066,1556.1,1555.3,0.0005745]
[1674062269413,14.0,1555.6,1555.3,0.0005745]
[1674062269593,14.056,1555.6,1555.3,0.0005745]
[1674062269758,14.0,1555.4,1555.3,0.0005745]
[1674062269974,14.0,1555.4,1554.9,0.06495465]
[1674062269975,26.00374759,1555.4,1554.9,0.06495465]
[1674062270234,3.29174759,1555.1,1554.9,0.06495465]
[1674062270444,3.29174759,1555.0,1554.9,0.06495465]
[1674062271127,3.29174759,1555.0,1554.9,0.56795465]
[1674062271395,3.29174759,1555.0,1554.9,0.06495465]
[1674062271594,17.29174759,1555.0,1554.9,0.06495465]
[1674062271778,17.35774759,1555.0,1554.9,0.06495465]
[1674062271966,20.35774759,1555.0,1554.9,0.06495465]
[1674062272177,17.35774759,1555.0,1554.9,0.06495465]
[1674062272975,21.35774759,1555.0,1554.9,0.06495465]
[1674062273281,20.35774759,1555.0,1554.9,0.06495465]
[1674062273471,26.78860759,1555.0,1554.9,0.06495465]
[1674062273687,26.78860759,1555.0,1554.9,0.92880425]
[1674062273858,27.01860759,1555.0,1554.9,0.83925751]
[1674062274108,27.01860759,1555.0,1554.7,0.03152186]
[1674062274109,20.35774759,1555.0,1554.5,0.39781477]
[1674062274278,3.29174759,1554.6,1554.5,0.39781477]
[1674062274492,17.29174759,1554.6,1554.5,0.39781477]
[1674062274735,25.35774759,1554.6,1554.5,0.39781477]
[1674062274956,25.35774759,1554.6,1554.5,0.00081477]
[1674062275124,25.35774759,1554.6,1554.1,0.03268756]
[1674062275342,3.29174759,1554.2,1554.1,0.03268756]
[1674062275546,25.29174759,1554.2,1554.1,0.03268756]
[1674062275754,28.35774759,1554.2,1554.1,0.03268756]
[1674062276005,20.35774759,1554.2,1554.1,0.03268756]
[1674062276215,14.066,1554.2,1554.1,0.67868756]
[1674062276430,14.066,1554.2,1554.1,0.03268756]
[1674062276651,17.35774759,1554.2,1554.1,0.03268756]
[1674062277025,28.35774759,1554.2,1554.1,0.03268756]
[1674062277257,17.35774759,1554.2,1554.1,0.03268756]
[1674062278141,6.35774759,1554.2,1554.1,0.03268756]
[1674062278292,28.35774759,1554.2,1554.1,0.03268756]
[1674062278500,25.35774759,1554.2,1554.1,0.03268756]
[1674062278711,28.35774759,1554.2,1554.1,0.03268756]
[1674062279132,20.35774759,1554.2,1554.1,0.03268756]
[1674062279571,6.35774759,1554.2,1554.1,0.53568756]
[1674062279804,0.066,1554.2,1554.1,0.03268756]
[1674062280022,0.066,1554.4,1554.1,0.03268756]
[1674062280210,37.989,1554.5,1554.1,0.03268756]
[1674062280422,14.0,1554.3,1554.1,0.03268756]
[1674062280598,0.066,1554.3,1554.1,0.03268756]
[1674062280812,0.06,1554.6,1554.1,0.03268756]
[1674062280813,1.422,1554.8,1554.1,1.18168756]
[1674062281086,37.7873,1555.0,1554.1,0.65385632]
[1674062281393,14.0,1554.7,1554.1,0.53568756]
[1674062281542,14.066,1554.7,1554.1,0.03268756]
[1674062281756,0.066,1554.7,1554.2,3.29174759]
[1674062282082,3.29174759,1554.7,1554.1,1.09868756]
[1674062282295,3.29174759,1554.7,1554.2,9.43412]
[1674062282669,14.0,1554.6,1554.2,0.066]
[1674062282967,14.0,1554.6,1554.1,1.03268756]
[1674062282968,0.066,1554.6,1554.1,1.03268756]
[1674062283136,3.35774759,1554.7,1554.1,1.03268756]
[1674062283345,3.29174759,1554.7,1554.1,1.23595632]
[1674062283612,0.066,1554.8,1554.2,3.29174759]
[1674062283849,14.066,1554.9,1554.1,0.09868756]
[1674062283971,1.0,1554.8,1554.1,6.52123756]
[1674062284178,14.0,1554.4,1554.1,0.09868756]
[1674062284425,14.066,1554.4,1554.1,0.03268756]
[1674062284632,14.0,1554.2,1554.1,0.03268756]
[1674062284822,17.35774759,1554.2,1554.1,0.03268756]
[1674062285169,0.066,1554.2,1554.1,0.03268756]
[1674062285329,14.0,1554.6,1554.1,0.53568756]
[1674062285541,14.0,1554.4,1554.1,0.03268756]